bitfinex/quotes_BTCUSD_20240718
["timestamp","ask_amount","ask_price","bid_price","bid_amount"]
[1721323447908,0.312726,63954.0,63942.0,0.156391]
[1721323448125,0.1408,63946.0,63943.0,0.15438174]
[1721323448341,0.1408,63946.0,63944.0,0.156386]
[1721323448560,0.1408,63946.0,63945.0,0.15438174]
[1721323449265,0.1408,63946.0,63945.0,0.68588911]
[1721323449486,0.1408,63946.0,63945.0,1.53672511]
[1721323449718,0.1408,63946.0,63945.0,1.22395711]
[1721323451238,0.1408,63946.0,63945.0,1.16160174]
[1721323451453,0.1408,63946.0,63945.0,1.17560174]
[1721323451875,0.1408,63946.0,63945.0,1.18960174]
[1721323452099,0.1408,63946.0,63945.0,0.96430174]
[1721323455493,0.1408,63946.0,63945.0,0.18238174]
[1721323456888,0.1408,63946.0,63945.0,0.33876574]
[1721323457329,0.1408,63946.0,63945.0,0.32476574]
[1721323457563,0.1408,63946.0,63945.0,0.31076574]
[1721323457778,0.1408,63946.0,63945.0,0.31876574]
[1721323458021,0.1408,63946.0,63945.0,0.32676574]
[1721323458236,0.1408,63946.0,63945.0,1.02147653]
[1721323458486,0.1408,63946.0,63945.0,1.03047653]
[1721323458708,0.1408,63946.0,63945.0,1.03947653]
[1721323458938,0.1408,63946.0,63945.0,0.96230174]
[1721323460281,0.1408,63946.0,63945.0,0.18038174]
[1721323460523,0.1408,63946.0,63945.0,0.15438174]
[1721323460747,0.1408,63946.0,63945.0,0.16738174]
[1721323460966,0.1408,63946.0,63945.0,0.17938174]
[1721323461846,0.1408,63946.0,63945.0,0.33576574]
[1721323462342,0.1408,63946.0,63945.0,0.64853374]
[1721323462572,0.1408,63946.0,63945.0,0.96130174]
[1721323462813,0.1408,63946.0,63945.0,0.64853374]
[1721323463687,0.1408,63946.0,63945.0,0.64944674]
[1721323464807,0.1408,63946.0,63945.0,0.96221474]
[1721323465754,0.0765,63946.0,63945.0,1.27498274]
[1721323466604,0.0621,63950.0,63949.0,0.781872]
[1721323466831,0.0621,63950.0,63949.0,1.02655374]
[1721323467182,0.1414,63950.0,63949.0,1.02655374]
[1721323467421,0.1414,63950.0,63949.0,1.33930274]
[1721323467682,0.00083,63966.0,63960.0,0.156347]
[1721323467683,0.05286287,63966.0,63960.0,0.156347]
[1721323467904,0.05286287,63966.0,63965.0,0.559305]
[1721323467905,0.05006887,63966.0,63965.0,0.559305]
[1721323468122,0.05006887,63966.0,63965.0,1.02635674]
[1721323468123,0.14223,63966.0,63965.0,1.02635674]
[1721323468586,0.14223,63966.0,63965.0,0.93605674]
[1721323469041,0.14223,63966.0,63965.0,0.93905674]
[1721323470888,0.14223,63966.0,63965.0,0.94205674]
[1721323472934,0.00083,63966.0,63965.0,1.25472674]
[1721323476614,0.00083,63966.0,63965.0,1.32052674]
[1721323476853,0.00083,63966.0,63965.0,1.25472674]
[1721323477723,0.00083,63966.0,63965.0,1.25172674]
[1721323478153,0.00083,63966.0,63965.0,1.26272674]
[1721323478368,0.00083,63966.0,63965.0,1.27672674]
[1721323478793,0.00083,63966.0,63965.0,0.18238174]
[1721323478794,0.14213,63966.0,63965.0,0.18238174]
[1721323479439,0.14213,63966.0,63965.0,0.65138674]
[1721323480358,0.14213,63966.0,63965.0,0.96405674]
[1721323480788,0.14213,63966.0,63965.0,0.65138674]
[1721323483914,0.14213,63966.0,63965.0,0.18238174]
[1721323484956,0.14213,63966.0,63965.0,0.16838174]
[1721323485395,0.14213,63966.0,63965.0,0.022]
[1721323486335,0.14213,63966.0,63965.0,0.008]
[1721323488497,0.14213,63966.0,63965.0,0.017]
[1721323488727,0.298463,63966.0,63965.0,0.017]
[1721323488985,0.6750209,63966.0,63965.0,0.017]
[1721323489223,1.236461,63966.0,63965.0,0.017]
[1721323489438,1.28792203,63966.0,63965.0,0.017]
[1721323489660,1.33040249,63966.0,63965.0,0.017]
[1721323489873,1.33040249,63966.0,63965.0,0.008]
[1721323490095,1.48067723,63966.0,63965.0,0.008]
[1721323490406,1.79434323,63966.0,63965.0,0.008]
[1721323490650,2.08902162,63966.0,63965.0,0.008]
[1721323491081,2.03902497,63966.0,63965.0,0.008]
[1721323491295,2.03902497,63966.0,63948.0,0.46304871]
[1721323491296,0.137,63950.0,63948.0,0.46304871]
[1721323491515,0.156377,63948.0,63945.0,0.46396171]
[1721323491741,0.137,63947.0,63945.0,0.000913]
[1721323493292,0.13663852,63947.0,63945.0,0.000913]
[1721323494152,0.0608,63955.0,63946.0,0.21908174]
[1721323494369,0.0608,63955.0,63951.0,0.156368]
[1721323494582,0.0608,63955.0,63951.0,0.31074974]
[1721323494803,0.0608,63955.0,63951.0,0.15438174]
[1721323495665,0.0608,63955.0,63951.0,0.31675074]
[1721323496320,0.0786,63954.0,63951.0,0.31675074]
[1721323496540,0.0786,63954.0,63951.0,0.32275074]
[1721323497444,0.0786,63954.0,63951.0,0.31675074]
[1721323497671,0.0786,63954.0,63951.0,0.32475074]
[1721323497937,0.0786,63954.0,63951.0,0.16838174]
[1721323498813,0.0786,63954.0,63951.0,0.16938174]
[1721323499027,0.0786,63954.0,63951.0,0.32574974]
[1721323500348,0.0786,63954.0,63951.0,0.015]
[1721323500603,0.234963,63954.0,63951.0,0.015]
[1721323501501,0.0608,63955.0,63951.0,0.015]
[1721323501502,0.237867,63952.0,63951.0,0.015]
[1721323501732,0.615601,63952.0,63951.0,0.015]
[1721323502428,0.0815,63952.0,63951.0,0.32575074]
[1721323502613,0.0815,63952.0,63951.0,0.16938174]
[1721323502860,0.0815,63952.0,63951.0,0.26367831]
[1721323503092,0.0815,63952.0,63951.0,0.16438174]
[1721323503516,0.0815,63952.0,63951.0,0.17438174]
[1721323504428,0.065,63955.0,63951.0,0.17438174]
[1721323505295,0.065,63955.0,63952.0,0.156366]
[1721323505693,0.065,63955.0,63951.0,0.32674974]
[1721323505910,0.065,63955.0,63951.0,0.31674974]
[1721323506343,0.065,63955.0,63951.0,0.32274974]
[1721323506571,0.065,63955.0,63951.0,0.31674974]
[1721323507080,0.222567,63952.0,63951.0,0.006]
[1721323507323,0.0662,63952.0,63951.0,0.006]
[1721323507770,0.081,63954.0,63951.0,0.16038174]
[1721323507987,0.1472,63960.0,63955.0,0.156358]
[1721323508229,0.1472,63960.0,63955.0,0.31073974]
[1721323508475,0.1472,63960.0,63956.0,0.156356]
[1721323508701,0.081,63960.0,63958.0,0.15635]
[1721323508918,0.081,63960.0,63959.0,0.15635]
[1721323509151,0.13247686,63960.0,63959.0,0.15635]
[1721323509377,0.13247686,63960.0,63956.0,0.156356]
[1721323509638,0.081,63960.0,63957.0,0.156354]
[1721323509863,0.081,63960.0,63958.0,0.15438174]
[1721323510082,0.081,63960.0,63959.0,0.15635]
[1721323510298,0.081,63960.0,63959.0,0.46905]
[1721323510766,0.082,63964.0,63961.0,0.156344]
[1721323510989,0.003624,63966.0,63965.0,0.156335]
[1721323510990,0.00083,63966.0,63965.0,0.156335]
[1721323511206,0.00083,63966.0,63964.0,0.156337]
[1721323511417,0.00083,63966.0,63964.0,0.15438174]
[1721323511632,0.00083,63966.0,63959.0,0.001]
[1721323511852,0.065,63965.0,63961.0,0.156344]
[1721323512076,0.065,63965.0,63959.0,0.001]
[1721323512077,0.0816,63964.0,63959.0,0.001]
[1721323512318,0.237938,63964.0,63959.0,0.001]
[1721323512984,0.237938,63964.0,63961.0,0.005]
[1721323513461,0.237938,63964.0,63957.0,0.156354]
[1721323513693,0.237938,63964.0,63957.0,0.31073574]
[1721323513928,0.31268,63963.0,63957.0,0.15438174]
[1721323514149,0.156345,63961.0,63954.0,0.156361]
[1721323514372,0.0601,63962.0,63955.0,0.31074074]
[1721323514373,0.216443,63962.0,63955.0,0.31074074]
[1721323514832,0.0601,63962.0,63955.0,0.15438174]
[1721323515051,0.216443,63962.0,63957.0,0.002]
[1721323515936,0.0757,63960.0,63957.0,0.002]
[1721323516190,0.156352,63958.0,63957.0,0.002]
[1721323516417,0.529157,63958.0,63955.0,0.004]
[1721323516638,0.232055,63957.0,63955.0,0.008]
[1721323516867,0.0757,63957.0,63955.0,0.004]
[1721323517310,0.0757,63957.0,63951.0,0.156369]
[1721323517531,0.0757,63957.0,63951.0,0.38902914]
[1721323518426,0.0757,63957.0,63955.0,0.005]
[1721323518648,0.156357,63956.0,63955.0,0.005]
[1721323519387,0.469071,63956.0,63955.0,0.005]
[1721323519615,0.469071,63956.0,63951.0,0.005]
[1721323519616,0.15636,63955.0,63951.0,0.005]
[1721323520089,0.156365,63953.0,63951.0,0.01]
[1721323520568,0.156365,63953.0,63951.0,0.005]
[1721323521365,0.156367,63952.0,63946.0,0.000913]
[1721323521600,0.1385,63951.0,63946.0,0.000913]
[1721323522976,0.1385,63951.0,63946.0,0.012913]
[1721323523193,0.0764,63951.0,63946.0,0.169294]
[1721323523836,0.0764,63951.0,63946.0,0.181294]
[1721323524740,0.0625,63950.0,63946.0,0.024913]
[1721323525177,0.156379,63947.0,63946.0,0.024913]
[1721323525402,0.924897,63947.0,63946.0,0.024913]
[1721323525622,1.32813984,63947.0,63946.0,0.012913]
[1721323525869,1.42834702,63947.0,63946.0,0.012913]
[1721323526064,1.49858105,63947.0,63946.0,0.016913]
[1721323526278,1.49858105,63947.0,63946.0,0.012913]
[1721323526512,1.42834702,63947.0,63946.0,0.000913]
[1721323526786,1.49858105,63947.0,63946.0,0.004913]
[1721323527210,1.49858105,63947.0,63946.0,0.001913]
[1721323527449,1.42834702,63947.0,63946.0,0.001913]
[1721323527682,1.43034702,63947.0,63946.0,0.002913]
[1721323528600,1.43122736,63947.0,63946.0,0.002913]
[1721323528838,1.5856091,63947.0,63946.0,0.002913]
[1721323529064,1.94836475,63947.0,63946.0,0.002913]
[1721323529978,1.8983681,63947.0,63946.0,0.002913]
[1721323530202,2.06856711,63947.0,63946.0,0.002913]
[1721323530423,2.11854311,63947.0,63946.0,0.002913]
[1721323530662,2.04836475,63947.0,63946.0,0.002913]
[1721323531183,1.9983681,63947.0,63946.0,0.002913]
[1721323531404,1.96834534,63947.0,63946.0,0.002913]
[1721323531644,1.89816092,63947.0,63946.0,0.002913]
[1721323531869,1.96835991,63947.0,63946.0,0.002913]
[1721323532101,1.85829493,63947.0,63946.0,0.002913]
[1721323532330,2.0183564,63947.0,63946.0,0.002913]
[1721323532547,2.17270597,63947.0,63946.0,0.002913]
[1721323532763,2.10252169,63947.0,63946.0,0.002913]
[1721323533449,2.17268545,63947.0,63946.0,0.002913]
[1721323533901,2.60328069,63947.0,63946.0,0.002913]
[1721323534347,2.67344519,63947.0,63946.0,0.002913]
[1721323534600,2.67144519,63947.0,63946.0,0.001913]
[1721323534821,2.60328069,63947.0,63946.0,0.002913]
[1721323535033,2.69691007,63947.0,63946.0,0.001913]
[1721323535272,2.70491007,63947.0,63946.0,0.002913]
[1721323535526,0.04999665,63946.0,63945.0,0.000913]
[1721323535763,0.04999665,63946.0,63922.0,0.000913]
[1721323535764,0.156438,63923.0,63922.0,0.000913]
[1721323536059,0.92579,63923.0,63922.0,0.000913]
[1721323537399,0.86029,63923.0,63922.0,0.000913]
[1721323537624,0.78219,63923.0,63922.0,0.000913]
[1721323537856,0.9060042,63923.0,63922.0,0.003913]
[1721323538330,0.78219,63923.0,63922.0,0.003913]
[1721323539454,0.469314,63923.0,63922.0,0.003913]
[1721323539923,0.469314,63923.0,63922.0,0.006913]
[1721323543935,1.159066,63923.0,63922.0,0.006913]
[1721323544142,1.239866,63923.0,63922.0,0.006913]
[1721323544349,1.88610665,63923.0,63922.0,0.006913]
[1721323544568,0.469446,63905.0,63904.0,0.000913]
[1721323545746,0.0808,63914.0,63905.0,0.149]
[1721323546151,0.156468,63911.0,63906.0,0.01047945]
[1721323546378,0.156471,63910.0,63906.0,0.01047945]
[1721323546600,0.156474,63908.0,63906.0,0.01047945]
[1721323546809,0.312936,63911.0,63906.0,0.01047945]
[1721323546810,0.156472,63909.0,63906.0,0.01047945]
[1721323547389,0.15647,63911.0,63906.0,0.01047945]
[1721323547594,0.15647,63910.0,63906.0,0.01047945]
[1721323548374,0.312943,63910.0,63906.0,0.01047945]
[1721323548550,0.156476,63908.0,63906.0,0.01047945]
[1721323548758,0.312949,63908.0,63906.0,0.01047945]
[1721323548992,0.312943,63910.0,63906.0,0.01047945]
[1721323549191,0.156476,63908.0,63906.0,0.01047945]
[1721323549392,0.156477,63907.0,63906.0,0.01047945]
[1721323549635,0.469431,63907.0,63906.0,0.002]
[1721323550611,0.156482,63906.0,63904.0,0.000913]
[1721323550850,1.3147124,63905.0,63904.0,0.000913]
[1721323551080,1.236474,63905.0,63904.0,0.000913]
[1721323552373,1.238474,63905.0,63904.0,0.000913]
[1721323552830,0.551646,63905.0,63904.0,0.000913]
[1721323553045,0.471446,63905.0,63904.0,0.000913]
[1721323553607,0.78441,63905.0,63904.0,0.000913]
[1721323554212,0.473446,63905.0,63904.0,0.000913]
[1721323554445,0.5207906,63905.0,63904.0,0.000913]
[1721323554660,0.8337546,63905.0,63904.0,0.000913]
[1721323555317,0.9159546,63905.0,63904.0,0.000913]
[1721323556450,1.2289186,63905.0,63904.0,0.000913]
[1721323556666,1.6052826,63905.0,63904.0,0.000913]
[1721323556887,1.14542265,63902.0,63901.0,0.009174]
[1721323557107,1.28462265,63902.0,63901.0,0.009174]
[1721323557320,1.59760165,63902.0,63901.0,0.009174]
[1721323557541,1.75198339,63902.0,63901.0,0.009174]
[1721323557959,1.8035889,63902.0,63901.0,0.009174]
[1721323558168,1.95793847,63902.0,63901.0,0.009174]
[1721323558382,1.86333631,63902.0,63901.0,0.009174]
[1721323559291,0.928647,63902.0,63901.0,0.009174]
[1721323559523,0.935647,63902.0,63901.0,0.010174]
[1721323559913,0.928647,63902.0,63901.0,0.009174]
[1721323560130,0.865247,63902.0,63901.0,0.009174]
[1721323560341,0.796447,63902.0,63901.0,0.010174]
[1721323560565,0.8824317,63902.0,63901.0,0.010174]
[1721323561352,0.5694527,63902.0,63901.0,0.010174]
[1721323561565,0.170489,63902.0,63901.0,0.074674]
[1721323561798,0.796447,63902.0,63901.0,0.010174]
[1721323562619,0.782447,63902.0,63901.0,0.009174]
[1721323562886,1.0069917,63902.0,63901.0,0.009174]
[1721323563122,1.3199707,63902.0,63901.0,0.010174]
[1721323563726,1.2567707,63902.0,63901.0,0.010174]
[1721323563953,0.469468,63902.0,63901.0,0.009174]
[1721323564167,0.472468,63902.0,63901.0,0.009174]
[1721323564595,0.785447,63902.0,63901.0,0.009174]
[1721323565274,0.479468,63902.0,63901.0,0.009174]
[1721323565490,0.01,63902.0,63901.0,0.072674]
[1721323565706,0.01,63902.0,63901.0,0.074674]
[1721323565940,0.01,63902.0,63901.0,0.08522315]
[1721323566150,0.007,63902.0,63901.0,0.08522315]
[1721323566641,0.013,63902.0,63901.0,0.08622315]
[1721323567052,0.007,63902.0,63901.0,0.08522315]
[1721323567264,0.007,63902.0,63901.0,0.08622315]
[1721323567898,0.007,63902.0,63901.0,0.24271515]
[1721323568319,0.007,63902.0,63901.0,0.08622315]
[1721323569015,0.0546445,63902.0,63901.0,0.08622315]
[1721323569242,0.007,63902.0,63901.0,0.08622315]
[1721323570097,0.007,63902.0,63901.0,0.24271515]
[1721323570569,0.007,63902.0,63901.0,0.55569915]
[1721323570786,0.007,63902.0,63901.0,1.41854889]
[1721323571008,0.156455,63916.0,63907.0,0.312952]
[1721323571231,0.002794,63915.0,63908.0,0.156473]
[1721323571466,0.20643634,63917.0,63910.0,0.301969]
[1721323571701,0.04998334,63917.0,63911.0,0.156467]
[1721323571928,0.04998334,63917.0,63911.0,0.16690222]
[1721323572144,0.156457,63916.0,63911.0,0.01043522]
[1721323572593,0.312907,63917.0,63911.0,0.01043522]
[1721323572594,0.003,63915.0,63911.0,0.01043522]
[1721323573279,0.156462,63913.0,63911.0,0.01043522]
[1721323573496,0.469395,63912.0,63911.0,0.01043522]
[1721323573734,0.469395,63912.0,63903.0,0.235286]
[1721323573735,0.156468,63911.0,63910.0,0.001]
[1721323573948,0.782338,63911.0,63910.0,0.001]
[1721323574162,0.9061842,63911.0,63910.0,0.001]
[1721323574408,0.312952,63908.0,63902.0,0.0656]
[1721323574626,0.312952,63908.0,63901.0,0.009174]
[1721323574627,0.15648,63906.0,63901.0,0.009174]
[1721323574857,0.15648,63906.0,63903.0,0.01051566]
[1721323575075,0.148,63907.0,63901.0,0.009174]
[1721323575076,0.0617432,63905.0,63902.0,0.01052571]
[1721323575305,0.148,63907.0,63901.0,0.009174]
[1721323575579,0.469468,63902.0,63901.0,0.009174]
[1721323576024,0.469468,63902.0,63901.0,0.017174]
[1721323576236,0.469468,63902.0,63901.0,0.009174]
[1721323576455,0.5625107,63902.0,63901.0,0.009174]
[1721323576705,0.5625107,63902.0,63901.0,0.016174]
[1721323577200,1.233926,63902.0,63901.0,0.016174]
[1721323577419,0.97258798,63902.0,63901.0,0.016174]
[1721323578110,0.97258798,63902.0,63901.0,0.009174]
[1721323578335,1.28556698,63902.0,63901.0,0.016174]
[1721323578567,1.48142402,63902.0,63901.0,0.016174]
[1721323579019,1.49142402,63902.0,63901.0,0.017174]
[1721323579257,1.49042402,63902.0,63901.0,0.010174]
[1721323579481,1.33607445,63902.0,63901.0,0.010174]
[1721323579695,1.34107445,63902.0,63901.0,0.010174]
[1721323579911,1.29756698,63902.0,63901.0,0.010174]
[1721323580129,1.3379328,63902.0,63901.0,0.010174]
[1721323580369,1.49228237,63902.0,63901.0,0.010174]
[1721323581074,1.0249538,63902.0,63901.0,0.010174]
[1721323581301,0.9570538,63902.0,63901.0,0.009174]
[1721323581761,0.9640538,63902.0,63901.0,0.010174]
[1721323582063,1.09792688,63902.0,63901.0,0.011174]
[1721323582292,1.09092688,63902.0,63901.0,0.010174]
[1721323582507,1.09592688,63902.0,63901.0,0.010174]
[1721323582719,1.09692688,63902.0,63901.0,0.009174]
[1721323583152,1.47183504,63902.0,63901.0,0.009174]
[1721323583390,1.47583504,63902.0,63901.0,0.009174]
[1721323583824,1.02898296,63902.0,63901.0,0.009174]
[1721323584081,0.96728296,63902.0,63901.0,0.009174]
[1721323585047,1.02898296,63902.0,63901.0,0.009174]
[1721323585254,1.34196196,63902.0,63901.0,0.009174]
[1721323585468,1.4963437,63902.0,63901.0,0.009174]
[1721323585927,1.65069327,63902.0,63901.0,0.009174]
[1721323586136,1.61009829,63902.0,63901.0,0.009174]
[1721323586355,1.65068923,63902.0,63901.0,0.009174]
[1721323586586,1.61009829,63902.0,63901.0,0.009174]
[1721323586792,1.65068923,63902.0,63901.0,0.009174]
[1721323588829,1.02897892,63902.0,63901.0,0.009174]
[1721323589040,0.57669992,63902.0,63901.0,0.009174]
[1721323589471,0.06664098,63902.0,63901.0,0.009174]
[1721323589741,0.26383965,63902.0,63901.0,0.009174]
[1721323589951,0.10735065,63902.0,63901.0,0.009174]
[1721323590379,0.26383965,63902.0,63901.0,0.01973353]
[1721323590589,0.88979765,63902.0,63901.0,0.01973353]
[1721323590827,1.0171011,63902.0,63901.0,0.01973353]
[1721323591042,1.0171011,63902.0,63901.0,0.009174]
[1721323591262,0.57681865,63902.0,63901.0,0.009174]
[1721323591477,0.88979765,63902.0,63901.0,0.009174]
[1721323593492,0.96619765,63902.0,63901.0,0.009174]
[1721323593916,0.88979765,63902.0,63901.0,0.009174]
[1721323594986,0.89062765,63902.0,63901.0,0.009174]
[1721323595410,1.03502289,63902.0,63901.0,0.009174]
[1721323595629,1.48670189,63902.0,63901.0,0.009174]
[1721323596313,1.48708747,63902.0,63901.0,0.009174]
[1721323596760,2.00444476,63902.0,63901.0,0.009174]
[1721323596969,1.95444811,63902.0,63901.0,0.009174]
[1721323599260,2.50539965,63902.0,63901.0,0.009174]
[1721323599494,3.13615133,63902.0,63901.0,1e-06]
[1721323599732,2.99547295,63902.0,63901.0,1e-06]
[1721323599947,3.15373612,63902.0,63901.0,1e-06]
[1721323600162,2.99547295,63902.0,63901.0,1e-06]
[1721323600400,3.21617295,63902.0,63901.0,1e-06]
[1721323600631,3.21617295,63902.0,63901.0,0.001001]
[1721323600632,3.22317295,63902.0,63901.0,0.001001]
[1721323601536,3.21317295,63902.0,63901.0,0.001001]
[1721323601770,3.21917295,63902.0,63901.0,0.002001]
[1721323602016,2.99347295,63902.0,63901.0,0.00091119]
[1721323602228,2.22771452,63902.0,63901.0,0.00091119]
[1721323602723,2.38591582,63902.0,63901.0,0.00091119]
[1721323602952,2.69889482,63902.0,63901.0,0.00091119]
[1721323603180,1.232564,63888.0,63887.0,0.009174]
[1721323603384,1.49791203,63888.0,63887.0,0.009174]
[1721323603867,1.290731,63888.0,63887.0,0.009174]
[1721323604533,0.35159,63888.0,63887.0,0.074274]
[1721323604762,0.664637,63888.0,63887.0,0.074274]
[1721323605003,0.674637,63888.0,63887.0,0.08168762]
[1721323605217,0.63121098,63888.0,63887.0,0.074274]
[1721323605447,0.67650128,63888.0,63887.0,0.08168762]
[1721323605678,0.69433208,63888.0,63887.0,0.08168762]
[1721323605910,0.73962376,63888.0,63887.0,0.074274]
[1721323606119,0.42657676,63888.0,63887.0,0.074274]
[1721323606340,0.42628512,63888.0,63887.0,0.074274]
[1721323606550,0.42628512,63888.0,63887.0,0.08168762]
[1721323606979,0.75033212,63888.0,63887.0,0.08268762]
[1721323607401,0.75033212,63888.0,63887.0,0.075274]
[1721323608051,1.37642612,63888.0,63887.0,0.010174]
[1721323608721,1.3763503,63888.0,63887.0,0.010174]
[1721323609389,1.33142608,63888.0,63887.0,0.010174]
[1721323609624,1.37673961,63888.0,63887.0,0.010174]
[1721323611170,1.53112135,63888.0,63887.0,0.010174]
[1721323612062,1.53110137,63888.0,63887.0,0.010174]
[1721323612289,1.60860137,63888.0,63887.0,0.010174]
[1721323613219,1.31359853,63888.0,63887.0,0.010174]
[1721323613464,1.00055153,63888.0,63887.0,0.010174]
[1721323615024,1.00058196,63888.0,63887.0,0.010174]
[1721323618300,1.00128534,63888.0,63887.0,0.010174]
[1721323619655,1.31433234,63888.0,63887.0,0.010174]
[1721323619867,1.45919839,63888.0,63887.0,0.010174]
[1721323620948,1.61328232,63888.0,63887.0,0.010174]
[1721323621185,1.76098232,63888.0,63887.0,0.010174]
[1721323622515,1.00098753,63888.0,63887.0,0.010174]
[1721323623423,1.31403453,63888.0,63887.0,0.010174]
[1721323624339,1.31431862,63888.0,63887.0,0.010174]
[1721323624559,1.00127162,63888.0,63887.0,0.010174]
[1721323624786,0.95525798,63888.0,63887.0,0.010174]
[1721323625009,1.44095761,63888.0,63887.0,0.010174]
[1721323625665,1.12791061,63888.0,63887.0,0.010174]
[1721323625886,1.00127162,63888.0,63887.0,0.010174]
[1721323626107,1.31431862,63888.0,63887.0,0.010174]
[1721323627212,1.31382414,63888.0,63887.0,0.010174]
[1721323628163,1.45492414,63888.0,63887.0,0.010174]
[1721323628795,1.31382414,63888.0,63887.0,0.010174]
[1721323629715,1.46817371,63888.0,63887.0,0.010174]
[1721323630792,1.46822736,63888.0,63887.0,0.010174]
[1721323632056,1.31387779,63888.0,63887.0,0.010174]
[1721323632356,1.31387779,63888.0,63887.0,0.091674]
[1721323632572,1.00083079,63888.0,63887.0,0.091674]
[1721323632795,1.00083079,63888.0,63887.0,0.010174]
[1721323633708,1.31387779,63888.0,63887.0,0.010174]
[1721323633931,1.46822736,63888.0,63887.0,0.010174]
[1721323634585,1.53847455,63888.0,63887.0,0.010174]
[1721323634989,1.53847637,63888.0,63887.0,0.010174]
[1721323635202,1.00075175,63888.0,63887.0,0.010174]
[1721323636508,1.0710798,63888.0,63887.0,0.010174]
[1721323637394,1.31379875,63888.0,63887.0,0.010174]
[1721323637608,1.48376948,63888.0,63887.0,0.010174]
[1721323637822,1.34450498,63888.0,63887.0,0.010174]
[1721323638043,1.62439044,63888.0,63887.0,0.010174]
[1721323638967,1.48391994,63888.0,63887.0,0.010174]
[1721323639191,1.40771994,63888.0,63887.0,0.010174]
[1721323639418,1.00085124,63888.0,63887.0,0.010174]
[1721323639634,1.09471584,63888.0,63887.0,0.010174]
[1721323640532,1.00085124,63888.0,63887.0,0.010174]
[1721323640983,1.07127075,63888.0,63887.0,0.010174]
[1721323641232,1.0711918,63888.0,63887.0,0.010174]
[1721323641456,1.09466388,63888.0,63887.0,0.010174]
[1721323642664,1.15512512,63888.0,63887.0,0.010174]
[1721323643592,1.53017212,63888.0,63887.0,0.010174]
[1721323644522,1.53043579,63888.0,63887.0,0.010174]
[1721323644995,1.48465455,63888.0,63887.0,0.010174]
[1721323645209,1.53043579,63888.0,63887.0,0.010174]
[1721323646537,1.46843579,63888.0,63887.0,0.010174]
[1721323647611,1.42265455,63888.0,63887.0,0.010174]
[1721323647825,1.4683818,63888.0,63887.0,0.010174]
[1721323649903,1.89895294,63888.0,63887.0,0.010174]
[1721323650114,1.84895629,63888.0,63887.0,0.010174]
[1721323650342,2.16200329,63888.0,63887.0,0.010174]
[1721323651013,2.16275819,63888.0,63887.0,0.010174]
[1721323652548,1.84971119,63888.0,63887.0,0.010174]
[1721323653198,2.16275819,63888.0,63887.0,0.010174]
[1721323654169,2.16345682,63888.0,63887.0,0.010174]
[1721323654654,2.11710921,63888.0,63887.0,0.010174]
[1721323654889,1.85041774,63888.0,63887.0,0.010174]
[1721323656606,2.16346474,63888.0,63887.0,0.010174]
[1721323657258,2.03498329,63888.0,63887.0,0.010174]
[1721323657555,2.16378024,63888.0,63887.0,0.010174]
[1721323657768,2.00943067,63888.0,63887.0,0.010174]
[1721323657986,1.69638367,63888.0,63887.0,0.010174]
[1721323660635,1.69778862,63888.0,63887.0,0.010174]
[1721323661056,2.01083562,63888.0,63887.0,0.010174]
[1721323661308,2.16518519,63888.0,63887.0,0.010174]
[1721323662187,1.85213819,63888.0,63887.0,0.010174]
[1721323662843,2.33018519,63888.0,63887.0,0.010174]
[1721323663464,2.38018184,63888.0,63887.0,0.010174]
[1721323663944,2.37989829,63888.0,63887.0,0.010174]
[1721323664242,2.40289829,63888.0,63887.0,0.010174]
[1721323664460,2.40290919,63888.0,63887.0,0.010174]
[1721323664883,2.40334473,63888.0,63887.0,0.010174]
[1721323665335,2.8749078,63888.0,63887.0,0.010174]
[1721323665540,2.71639173,63888.0,63887.0,0.010174]
[1721323666698,2.71639173,63888.0,63887.0,0.00425133]
[1721323667134,2.71651329,63888.0,63887.0,0.00425133]
[1721323668031,2.35346964,63888.0,63887.0,0.00425133]
[1721323668244,2.40346629,63888.0,63887.0,0.00425133]
[1721323668464,2.49396629,63888.0,63887.0,0.00425133]
[1721323669629,2.17615349,63888.0,63887.0,0.00425133]
[1721323669850,2.26665349,63888.0,63887.0,0.00425133]
[1721323670286,2.13613372,63888.0,63887.0,0.00425133]
[1721323670503,2.26664955,63888.0,63887.0,0.00425133]
[1721323670965,2.40748038,63888.0,63887.0,0.00425133]
[1721323671214,2.56182995,63888.0,63887.0,0.00425133]
[1721323671426,1.39882081,63888.0,63887.0,0.00425133]
[1721323672659,0.12003729,63888.0,63887.0,0.15145133]
[1721323672873,0.12003729,63888.0,63887.0,0.24195133]
[1721323672874,0.19044433,63888.0,63887.0,0.24195133]
[1721323673101,0.12003729,63888.0,63887.0,0.24938465]
[1721323673569,0.12003729,63888.0,63887.0,0.40591065]
[1721323673570,0.07264098,63888.0,63887.0,0.40591065]
[1721323673789,0.07264098,63888.0,63887.0,0.40491065]
[1721323673790,0.06164098,63888.0,63887.0,0.40491065]
[1721323674042,0.01,63888.0,63887.0,0.40491065]
[1721323674257,0.001,63888.0,63887.0,0.41091065]
[1721323674512,0.001,63888.0,63887.0,0.72396265]
[1721323674742,0.001,63888.0,63887.0,1.19339639]
[1721323674963,0.001,63888.0,63887.0,1.19709748]
[1721323675182,0.001,63888.0,63887.0,1.19509748]
[1721323675404,0.002,63888.0,63887.0,1.19809748]
[1721323675624,0.002,63888.0,63887.0,1.51114948]
[1721323676289,0.002,63888.0,63887.0,1.42064948]
[1721323677231,0.002,63888.0,63887.0,1.73370148]
[1721323679449,0.002,63888.0,63887.0,1.78370148]
[1721323679665,0.002,63888.0,63887.0,1.73370148]
[1721323679922,0.002,63888.0,63887.0,1.78370148]
[1721323680133,0.00083,63901.0,63900.0,1.232761]
[1721323680355,0.00083,63901.0,63900.0,1.40277892]
[1721323680639,0.00083,63901.0,63900.0,1.41373922]
[1721323681290,0.00083,63901.0,63900.0,1.10075022]
[1721323681753,0.00083,63901.0,63900.0,0.63337948]
[1721323682886,0.00083,63901.0,63900.0,0.64737948]
[1721323682887,0.00183,63901.0,63900.0,0.64737948]